fUST/lending_fUST_20250122
["ID","MTS","AMOUNT","RATE_DAILY","PERIOD"]
[349905719,1737489046315,-501.29611919,0.00021917,3]
[349905720,1737489046325,-2115.13,0.00021917,3]
[349905721,1737489046334,-500.0,0.00021917,3]
[349905722,1737489046344,-501.14729897,0.00021917,3]
[349905723,1737489046354,-1096.66,0.00021917,3]
[349905724,1737489046364,-504.10714261,0.00021917,3]
[349905725,1737489046374,-500.0,0.00021917,3]
[349905726,1737489046384,-1613.34,0.00021917,3]
[349905727,1737489046394,-500.0,0.00021917,3]
[349905728,1737489046404,-500.0,0.00021917,3]
[349905729,1737489046414,-540.94178565,0.00021917,3]
[349905730,1737489046424,-500.0,0.00021917,3]
[349905731,1737489046433,-1591.42,0.00021917,3]
[349905732,1737489046442,-500.0,0.00021917,3]
[349905733,1737489046452,-500.0,0.00021917,3]
[349905734,1737489046461,-500.0,0.00021917,3]
[349905735,1737489046471,-500.0,0.00021917,3]
[349905736,1737489046484,-500.0,0.00021917,3]
[349905737,1737489046494,-500.0,0.00021917,3]
[349905738,1737489046504,-500.0,0.00021917,3]
[349905739,1737489046514,-500.0,0.00021917,3]
[349905740,1737489046523,-501.92509166,0.00021917,3]
[349905741,1737489046533,-500.0,0.00021917,3]
[349905742,1737489046543,-500.0,0.00021917,3]
[349905743,1737489046552,-500.0,0.00021917,3]
[349905744,1737489046563,-500.0,0.00021917,3]
[349905745,1737489046572,-500.0,0.00021917,3]
[349905746,1737489046582,-911.51,0.00021917,3]
[349905747,1737489046593,-500.0,0.00021917,3]
[349905748,1737489046603,-500.0,0.00021917,3]
[349905749,1737489046612,-500.0,0.00021917,3]
[349905750,1737489046622,-500.0,0.00021917,3]
[349905751,1737489046632,-500.0,0.00021917,3]
[349905752,1737489046641,-528.18,0.00021917,3]
[349905753,1737489046650,-500.0,0.00021917,3]
[349905754,1737489046660,-500.67417908,0.00021917,3]
[349905755,1737489046670,-500.0,0.00021917,3]
[349905756,1737489046679,-500.0,0.00021917,3]
[349905757,1737489046688,-500.0,0.00021917,3]
[349905758,1737489046697,-500.0,0.00021917,3]
[349905759,1737489046707,-500.0,0.00021917,3]
[349905760,1737489046716,-500.0,0.00021917,3]
[349905761,1737489046729,-500.0,0.00021917,3]
[349905762,1737489046738,-595.55232431,0.00021917,3]
[349905763,1737489046747,-663.88,0.00021917,3]
[349905764,1737489046757,-180.80976095,0.00021917,3]
[349905765,1737489099400,1910.42572681,0.0002,6]
[349905769,1737489497777,200.319309,0.00013973,2]
[349905809,1737490232266,-611.12962936,0.00018659,2]
[349905812,1737490232283,-4257.36298995,0.00018747,2]
[349905814,1737490232303,-285.5164874,0.00018747,2]
[349905817,1737490232318,-611.12962936,0.000189,2]
[349905819,1737490232332,-167.468686,0.00019234,2]
[349905821,1737490232347,-270.814917,0.00019714,2]
[349905824,1737490232364,-848.62732818,0.00019717,2]
[349905826,1737490232375,-879.49877217,0.0001972,2]
[349905828,1737490232391,-960.98524193,0.0001972,2]
[349905831,1737490232406,-38.72142727,0.0002019,2]
[349905834,1737490232423,-162.08857273,0.0002019,2]
[349905836,1737490232440,-300.0,0.00020196,2]
[349905838,1737490232456,-9705.1897453,0.00020197,2]
[349905841,1737490232468,-3796.0,0.000202,2]
[349905843,1737490232478,-200.319309,0.00020447,2]
[349905845,1737490232490,-3938.0527976,0.00020476,2]
[349905847,1737490232505,-167.994493,0.00020596,2]
[349905849,1737490232519,-500.0,0.00020625,2]
[349905852,1737490232530,-417.038,0.0002095,2]
[349905854,1737490232544,-152.0,0.00021036,2]
[349905856,1737490232556,-500.0,0.00021054,7]
[349905858,1737490232567,-500.0,0.00021054,7]
[349905860,1737490232580,-359.61,0.00021054,7]
[349905862,1737490232593,-154.0,0.00021353,2]
[349905864,1737490232605,-5316.29056775,0.00021397,2]
[349905867,1737490232620,-7177.11168625,0.00021397,2]
[349905869,1737490232633,-1759.55394831,0.00021463,2]
[349905873,1737490232664,-303.44605169,0.00021463,2]
[349905875,1737490232677,-536.0,0.00021463,2]
[349905877,1737490232689,-2308.0,0.00021463,2]
[349905879,1737490232701,-395.0,0.00021463,2]
[349905882,1737490232713,-154.0,0.0002149,2]
[349905884,1737490232725,-154.0,0.00021626,2]
[349905886,1737490232737,-3796.0,0.00021816,4]
[349905888,1737490232748,-260.85948245,0.00021816,2]
[349905890,1737490232761,-172.926,0.00021817,2]
[349905892,1737490232774,-215.943,0.00021817,2]
[349905895,1737490232786,-260.85948244,0.00021851,2]
[349905897,1737490232799,-12493.402254,0.00021864,2]
[349905899,1737490232812,-260.85948244,0.00021885,2]
[349905901,1737490232825,-1005.6559644,0.00021896,2]
[349905903,1737490232838,-88.60488939,0.000219,2]
[349906045,1737490237954,-953.06511061,0.000219,2]
[349906047,1737490237964,-785.83131564,0.00021907,2]
[349906049,1737490237975,-500.0,0.00021916,2]
[349906051,1737490237985,-270.0,0.00021916,2]
[349906053,1737490237995,-500.0,0.00021916,2]
[349906055,1737490238005,-500.0,0.00021916,2]
[349906057,1737490238015,-500.0,0.00021916,2]
[349906059,1737490238025,-500.0,0.00021916,2]
[349906061,1737490238034,-500.0,0.00021916,2]
[349906063,1737490238044,-500.0,0.00021916,2]
[349906065,1737490238054,-219.72425494,0.00021916,2]
[349906068,1737490238073,-500.0,0.00021916,2]
[349906070,1737490238085,-500.0,0.00021916,2]
[349906072,1737490238095,-500.0,0.00021916,2]
[349906074,1737490238105,-118.49504194,0.00021916,2]
[349906077,1737490238119,-381.50495806,0.00021916,2]
[349906079,1737490238130,-500.0,0.00021916,2]
[349906081,1737490238140,-500.0,0.00021916,2]
[349906083,1737490238150,-354.60468767,0.00021916,2]
[349906085,1737490238160,-263.89035427,0.00021916,2]
[349906087,1737490238173,-236.10964573,0.00021916,2]
[349906089,1737490238184,-500.0,0.00021916,2]
[349906091,1737490238194,-500.0,0.00021916,2]
[349906093,1737490238205,-482.76694128,0.00021916,2]
[349906095,1737490238215,-168.95047315,0.00021916,2]
[349906268,1737490240004,-460.75240714,0.00021916,2]
[349906269,1737490240014,-500.0,0.00021916,2]
[349906270,1737490240024,-500.0,0.00021916,2]
[349906271,1737490240035,-500.0,0.00021916,2]
[349906272,1737490240044,-500.0,0.00021916,2]
[349906273,1737490240055,-500.0,0.00021916,2]
[349906274,1737490240065,-352.3272151,0.00021916,2]
[349906275,1737490240121,-147.6727849,0.00021916,2]
[349906276,1737490240131,-500.0,0.00021916,2]
[349906278,1737490240141,-256.76558068,0.00021916,2]
[349906280,1737490240151,-361.43706526,0.00021916,2]
[349906282,1737490240161,-500.0,0.00021916,2]
[349906284,1737490240170,-500.0,0.00021916,2]
[349906286,1737490240180,-500.0,0.00021916,2]
[349906288,1737490240190,-500.0,0.00021916,2]
[349906290,1737490240199,-500.0,0.00021916,2]
[349906292,1737490240209,-261.18689288,0.00021916,2]
[349906294,1737490240218,-500.0,0.00021916,2]
[349906296,1737490240228,-416.47665414,0.00021916,2]
[349906298,1737490240239,-402.84082772,0.00021916,2]
[349906300,1737490240251,-97.15917228,0.00021916,2]
[349906302,1737490240261,-500.0,0.00021916,2]
[349906304,1737490240272,-500.0,0.00021916,2]
[349906306,1737490240283,-500.0,0.00021916,2]
[349906308,1737490240293,-500.0,0.00021916,2]
[349906310,1737490240302,-406.34844117,0.00021916,2]
[349906311,1737490240315,-93.65155883,0.00021916,2]
[349906312,1737490240325,-500.0,0.00021916,2]
[349906313,1737490240334,-500.0,0.00021916,2]
[349906314,1737490240345,-500.0,0.00021916,2]
[349906315,1737490240357,-500.0,0.00021916,2]
[349906316,1737490240367,-51.63535455,0.00021916,2]
[349906317,1737490240379,-448.36464545,0.00021916,2]
[349906318,1737490240389,-500.0,0.00021916,2]
[349906319,1737490240399,-500.0,0.00021916,2]
[349906320,1737490240408,-129.62844117,0.00021916,2]
[349906438,1737490246070,-746.72947002,0.00021697,2]
[349906463,1737490425843,3280.60918006,0.0002,6]
[349906465,1737490777582,188.244973,0.00013973,2]
[349906689,1737491440269,-407.41975291,0.000189,2]
[349906690,1737491440279,-167.994493,0.00020377,2]
[349906691,1737491440288,-188.244973,0.00020447,2]
[349906692,1737491440298,-500.0,0.00020625,2]
[349906693,1737491440308,-270.8149174,0.0002085,2]
[349906694,1737491440317,-399.681,0.0002095,2]
[349906695,1737491440327,-536.0,0.00021515,2]
[349906697,1737491440337,-810.5,0.00021799,15]
[349906699,1737491440346,-3002.97661093,0.00021817,3]
[349906722,1737491443171,-259.0,0.00021817,3]
[349906723,1737491443235,-2449.24720721,0.00021817,3]
[349906761,1737491446439,-854.76,0.00021817,3]
[349906984,1737491650059,500.0,0.0002,6]
[349906985,1737491652544,136.93668862,0.00013973,2]
[349906986,1737491652585,40.44577438,0.00013973,2]
[349907031,1737492114569,7068.496317,0.00024,120]
[349907206,1737492267760,288.25873421,0.0002,6]
[349907474,1737492528310,177.884288,0.00013973,2]
[349907505,1737492632390,-589.7459914,0.0001921,2]
[349907507,1737492632400,-589.7459914,0.00019404,2]
[349907509,1737492632409,-589.7459914,0.000196,2]
[349907511,1737492632418,-167.468686,0.00019611,2]
[349907513,1737492632427,-500.0,0.00019617,2]
[349907515,1737492632436,-177.884288,0.00020447,2]
[349907517,1737492632446,-522.15815971,0.00020625,2]
[349907519,1737492632455,-155.730337,0.00020789,4]
[349907521,1737492632465,-398.018,0.0002082,2]
[349907523,1737492632474,-300.0,0.00020898,2]
[349907525,1737492632483,-173.90632164,0.00020899,2]
[349907527,1737492632491,-65.62637724,0.00020899,5]
[349907532,1737492632533,-338.68492967,0.00020899,5]
[349907749,1737492638265,-462.62177378,0.00019018,2]
[349907750,1737492638277,-127.12421762,0.00019018,2]
[349907751,1737492638287,-9437.75269025,0.00020899,5]
[349907752,1737492638297,-27840.44575213,0.000209,5]
[349907961,1737492640338,-1401.00747317,0.000209,5]
[349907963,1737492640350,-10524.33523542,0.000209,5]
[349907965,1737492640362,-1956.418382,0.000209,5]
[349907975,1737492640448,-1715.29381923,0.000209,5]
[349907977,1737492640458,-2609.68274325,0.000209,3]
[349907979,1737492640467,-70.97376249,0.000209,2]
[349907981,1737492640479,-94.14623751,0.000209,2]
[349907984,1737492640489,-7901.14972578,0.000209,2]
[349907986,1737492640499,-173.90632162,0.00020919,2]
[349907988,1737492640509,-173.90632162,0.00020938,2]
[349907990,1737492640518,-500.0,0.00020973,2]
[349907992,1737492640528,-172.927,0.00020999,2]
[349907994,1737492640538,-500.0,0.00020999,2]
[349907996,1737492640547,-395.5076723,0.00020999,2]
[349907998,1737492640557,-307.20671794,0.00020999,2]
[349908000,1737492640566,-500.0,0.00020999,2]
[349908002,1737492640575,-500.0,0.00020999,2]
[349908004,1737492640585,-500.0,0.00020999,2]
[349908006,1737492640594,-124.03232752,0.00020999,2]
[349908008,1737492640605,-375.96767248,0.00020999,2]
[349908009,1737492640615,-500.0,0.00020999,2]
[349908011,1737492640624,-473.46521032,0.00020999,2]
[349908013,1737492640634,-261.62274307,0.00020999,2]
[349908015,1737492640643,-500.0,0.00020999,2]
[349908017,1737492640653,-500.0,0.00020999,2]
[349908019,1737492640662,-195.19617563,0.00020999,2]
[349908021,1737492640671,-500.0,0.00020999,2]
[349908023,1737492640680,-500.0,0.00020999,2]
[349908025,1737492640689,-500.0,0.00020999,2]
[349908027,1737492640699,-236.63365336,0.00020999,2]
[349908029,1737492640708,-500.0,0.00020999,2]
[349908031,1737492640717,-500.0,0.00020999,2]
[349908033,1737492640726,-500.0,0.00020999,2]
[349908034,1737492640735,-206.82634059,0.00020999,2]
[349908036,1737492640744,-500.0,0.00020999,2]
[349908038,1737492640754,-500.0,0.00020999,2]
[349908040,1737492640763,-500.0,0.00020999,2]
[349908042,1737492640772,-500.0,0.00020999,2]
[349908044,1737492640783,-500.0,0.00020999,2]
[349908046,1737492640792,-500.0,0.00020999,2]
[349908048,1737492640801,-500.0,0.00020999,2]
[349908050,1737492640811,-500.0,0.00020999,2]
[349908052,1737492640820,-500.0,0.00020999,2]
[349908054,1737492640829,-500.0,0.00020999,2]
[349908056,1737492640838,-500.0,0.00020999,2]
[349908058,1737492640847,-500.0,0.00020999,2]
[349908060,1737492640857,-500.0,0.00020999,2]
[349908062,1737492640866,-500.0,0.00020999,2]
[349908064,1737492640876,-500.0,0.00020999,2]
[349908066,1737492640886,-500.0,0.00020999,2]
[349908068,1737492640895,-500.0,0.00020999,2]
[349908070,1737492640906,-500.0,0.00020999,2]
[349908072,1737492640915,-500.0,0.00020999,2]
[349908074,1737492640925,-500.0,0.00020999,2]
[349908076,1737492640934,-500.0,0.00020999,2]
[349908078,1737492640943,-500.0,0.00020999,2]
[349908080,1737492640953,-200.06413122,0.00020999,2]
[349908082,1737492640963,-500.0,0.00020999,2]
[349908084,1737492640972,-500.0,0.00020999,2]
[349908086,1737492640982,-500.0,0.00020999,2]
[349908088,1737492640991,-500.0,0.00020999,2]
[349908090,1737492641000,-500.0,0.00020999,2]
[349908091,1737492641010,-500.0,0.00020999,2]
[349908093,1737492641021,-500.0,0.00020999,2]
[349908095,1737492641031,-500.0,0.00020999,2]
[349908098,1737492641045,-602.34170355,0.00020999,2]
[349908100,1737492641055,-500.0,0.00020999,2]
[349908102,1737492641065,-500.0,0.00020999,2]
[349908104,1737492641075,-500.0,0.00020999,2]
[349908105,1737492641086,-500.0,0.00020999,2]
[349908107,1737492641095,-500.0,0.00020999,2]
[349908109,1737492641105,-500.0,0.00020999,2]
[349908111,1737492641115,-21594.77986402,0.00021,15]
[349908114,1737492641128,-9645.74287983,0.00021,15]
[349908325,1737492643352,-165.12,0.00020691,2]
[349908327,1737492643363,-349.38,0.00021,15]
[349908329,1737492643376,-417.625,0.00021,15]
[349908646,1737492646329,-20953.4994251,0.00021,15]
[349908648,1737492646341,-38997.23730404,0.00021,15]
[349908651,1737492646352,-1395.24264431,0.00021,15]
[349908653,1737492646364,-1277.16,0.00021,15]
[349909601,1737492656415,852.25969529,0.00018904,7]
[349909843,1737493643331,168.057847,0.00013973,2]
[349909953,1737493838652,-878.00436701,0.00016753,2]
[349909954,1737493838662,-878.00436701,0.00016922,2]
[349909955,1737493838672,-288.25873421,0.000188,2]
[349909956,1737493838681,-798.97639907,0.000189,2]
[349909957,1737493838694,-79.02796794,0.000189,2]
[349909958,1737493838706,-191.88473923,0.000196,2]
[349909959,1737493838716,-2711.0,0.0002,2]
[349909960,1737493838726,-353.8262533,0.0002,2]
[349909961,1737493838736,-168.057847,0.00020447,2]
[349909962,1737493838745,-353.8262533,0.000205,2]
[349909963,1737493838754,-300.0,0.0002052,2]
[349909964,1737493838764,-353.8262533,0.00020521,2]
[349909965,1737493838773,-353.8262533,0.00020521,2]
[349909966,1737493838782,-353.8262533,0.00020521,2]
[349909967,1737493838792,-353.8262533,0.00020521,2]
[349909968,1737493838801,-353.8262533,0.00020521,2]
[349909969,1737493838810,-353.8262533,0.00020521,2]
[349909970,1737493838819,-353.8262533,0.00020521,2]
[349909971,1737493838828,-353.8262533,0.00020521,2]
[349909972,1737493838837,-353.8262533,0.00020521,2]
[349909973,1737493838846,-353.8262533,0.00020521,2]
[349909974,1737493838867,-296.1834726,0.00020521,2]
[349909975,1737493838877,-353.8262533,0.00020541,2]
[349909976,1737493838886,-353.8262533,0.000206,2]
[349909977,1737493838896,-172.927,0.000206,2]
[349909978,1737493838906,-353.8262533,0.000206,2]
[349909979,1737493838915,-353.8262533,0.000206,2]
[349909980,1737493838926,-353.8262533,0.000206,2]
[349909981,1737493838936,-353.8262533,0.000206,2]
[349909982,1737493838946,-153.9757311,0.000206,2]
[349909983,1737493838956,-317.5126754,0.000206,2]
[349909984,1737493838966,-429.9532936,0.000206,2]
[349909985,1737493838976,-353.8262533,0.000206,2]
[349909986,1737493838986,-395.0,0.00020784,2]
[349909987,1737493838996,-381.178,0.0002082,2]
[349909988,1737493839006,-1804.05721265,0.000209,2]
[349909998,1737493840711,-151.0,0.00020832,2]
[349909999,1737493840720,-197.0,0.00020832,2]
[349910000,1737493840730,-5833.72085543,0.000209,2]
[349910001,1737493840739,-500.0,0.00020973,2]
[349910002,1737493840748,-500.0,0.00020999,2]
[349910003,1737493840758,-1044.73593688,0.00021,5]
[349910004,1737493840769,-1571.0,0.00021,5]
[349910005,1737493840781,-3512.41320769,0.00021,5]
[349910050,1737493843569,-197.73,0.00020832,2]
[349910052,1737493843579,-151.0,0.00020832,2]
[349910054,1737493843590,-151.0,0.00020832,2]
[349910056,1737493843600,-151.0,0.00020832,2]
[349910058,1737493843611,-6.48224877,0.00020832,2]
[349910259,1737494524488,159.214049,0.00013973,2]
[349910333,1737495038702,-255.86033159,0.00017794,2]
[349910334,1737495038714,-329.47591308,0.00017794,2]
[349910335,1737495038725,-585.33624467,0.000189,2]
[349910336,1737495038735,-303.19706141,0.00019,2]
[349910337,1737495038744,-88.74344862,0.0001919,2]
[349910338,1737495038756,-214.5203602,0.0001919,2]
[349910339,1737495038766,-6205.3853095,0.0002,2]
[349910484,1737495046682,-1000.65286329,0.000198,2]
[349910486,1737495046693,-4695.82750803,0.0002,2]
[349910487,1737495046703,-159.214049,0.00020447,2]
[349910488,1737495046713,-365.345,0.0002073,2]
[349910490,1737495046723,-500.0,0.00020999,2]
[349910492,1737495046733,-4921.03199858,0.00020999,5]
[349910494,1737495046742,-6234.3593819,0.00021,5]
[349910632,1737495612816,159.215402,0.00013973,2]
[349910686,1737496232203,-161.6452185,0.00018339,2]
[349910688,1737496232212,-474.50655141,0.000189,2]
[349910690,1737496232223,-350.24,0.0001995,2]
[349910692,1737496232232,-159.215402,0.00020807,2]
[349910694,1737496232242,-3732.34440152,0.00020812,2]
[349910697,1737496232254,-494.10000001,0.00020812,2]
[349910699,1737496232265,-733.69776615,0.00020812,2]
[349910702,1737496232286,-1319.06425739,0.00020812,2]
[349910704,1737496232295,-178.8772176,0.000209,2]
[349910706,1737496232305,-854.76,0.000209,3]
[349910707,1737496232314,-300.0,0.00020989,2]
[349910708,1737496232323,-2178.34301086,0.0002099,2]
[349910709,1737496232334,-301.39413098,0.00020998,2]
[349910711,1737496232343,-172.927,0.00020999,2]
[349910712,1737496232353,-500.0,0.00020999,2]
[349910714,1737496232363,-500.0,0.00020999,2]
[349910717,1737496232372,-500.0,0.00020999,2]
[349910719,1737496232382,-500.0,0.00020999,2]
[349910720,1737496232391,-500.0,0.00020999,2]
[349910722,1737496232401,-500.0,0.00020999,2]
[349910724,1737496232412,-370.1525687,0.00020999,2]
[349910725,1737496232421,-602.25258009,0.00020999,2]
[349910727,1737496232431,-554.76652416,0.00020999,2]
[349910729,1737496232440,-500.0,0.00020999,2]
[349910730,1737496232449,-2460.51599929,0.00020999,5]
[349910732,1737496232459,-15537.49606773,0.00021,5]
[349910733,1737496232468,-592.48979114,0.00021,15]
[349911205,1737496242897,-153.0,0.00020836,2]
[349911207,1737496242907,-13583.6673222,0.00021,15]
[349911808,1737496708162,159.357791,0.00013973,2]
[349911856,1737497432437,-316.33770094,0.000189,2]
[349911858,1737497432446,-60.86228906,0.0001995,2]
[349911868,1737497432535,-274.74471094,0.0001995,2]
[349911870,1737497432545,-2324.0,0.0002,2]
[349911872,1737497432555,-178.87721759,0.00020899,2]
[349911874,1737497432566,-300.0,0.00020899,2]
[349911876,1737497432575,-7718.27351588,0.000209,2]
[349911878,1737497432584,-185.0,0.00020991,2]
[349911880,1737497432596,-185.53,0.00020991,2]
[349911882,1737497432605,-7768.74803387,0.00020999,5]
[349911884,1737497432614,-1230.25799965,0.00020999,5]
[349911886,1737497432623,-172.9270783,0.00020999,2]
[349911888,1737497432633,-158.924,0.00020999,2]
[349911890,1737497432643,-151.0,0.00020999,2]
[349911892,1737497432652,-151.0,0.00020999,2]
[349911894,1737497432661,-151.652202,0.00020999,2]
[349911896,1737497432671,-151.0,0.00020999,2]
[349911898,1737497432680,-151.0,0.00020999,2]
[349911900,1737497432689,-238.041628,0.00020999,2]
[349911902,1737497432698,-151.0,0.00020999,2]
[349911904,1737497432707,-151.0,0.00020999,2]
[349911906,1737497432716,-151.0,0.00020999,2]
[349911908,1737497432727,-151.0,0.00020999,2]
[349911910,1737497432736,-151.0,0.00020999,2]
[349911912,1737497432746,-151.0,0.00020999,2]
[349911914,1737497432755,-151.0,0.00020999,2]
[349911916,1737497432765,-151.0,0.00020999,2]
[349911918,1737497432775,-151.0,0.00020999,2]
[349911921,1737497432786,-151.0,0.00020999,2]
[349911922,1737497432796,-151.0,0.00020999,2]
[349911923,1737497432805,-151.0,0.00020999,2]
[349911924,1737497432814,-151.0,0.00020999,2]
[349911925,1737497432823,-151.0,0.00020999,2]
[349911926,1737497432833,-151.0,0.00020999,2]
[349911927,1737497432842,-151.0,0.00020999,2]
[349911928,1737497432851,-151.0,0.00020999,2]
[349911929,1737497432860,-151.0,0.00020999,2]
[349911930,1737497432869,-175.716843,0.00020999,2]
[349911931,1737497432878,-186.31257,0.00020999,2]
[349911932,1737497432888,-186.31257,0.00020999,2]
[349911933,1737497432897,-186.31257,0.00020999,2]
[349911934,1737497432906,-186.31257,0.00020999,2]
[349911935,1737497432918,-186.31257,0.00020999,2]
[349911936,1737497432928,-186.31257,0.00020999,2]
[349911937,1737497432939,-186.31257,0.00020999,2]
[349911938,1737497432948,-186.31257,0.00020999,2]
[349911939,1737497432958,-186.31257,0.00020999,2]
[349911940,1737497432967,-186.31257,0.00020999,2]
[349911941,1737497432976,-186.31257,0.00020999,2]
[349911942,1737497432985,-186.31257,0.00020999,2]
[349911943,1737497432995,-186.31257,0.00020999,2]
[349911944,1737497433004,-186.31257,0.00020999,2]
[349911945,1737497433013,-186.31257,0.00020999,2]
[349911946,1737497433023,-186.31257,0.00020999,2]
[349911947,1737497433032,-186.31257,0.00020999,2]
[349911948,1737497433042,-186.31257,0.00020999,2]
[349911949,1737497433051,-186.31257,0.00020999,2]
[349911950,1737497433060,-186.312577,0.00020999,2]
[349911951,1737497433070,-151.0,0.00020999,2]
[349911952,1737497433079,-151.0,0.00020999,2]
[349911953,1737497433089,-151.0,0.00020999,2]
[349911954,1737497433099,-243.830609,0.00020999,2]
[349911955,1737497433108,-243.830609,0.00020999,2]
[349911956,1737497433117,-243.830609,0.00020999,2]
[349911957,1737497433127,-243.830609,0.00020999,2]
[349911958,1737497433136,-243.830609,0.00020999,2]
[349911959,1737497433145,-243.830609,0.00020999,2]
[349911960,1737497433155,-243.830609,0.00020999,2]
[349911961,1737497433165,-243.830609,0.00020999,2]
[349911962,1737497433175,-243.830609,0.00020999,2]
[349911963,1737497433184,-243.830609,0.00020999,2]
[349911964,1737497433194,-243.830609,0.00020999,2]
[349911965,1737497433203,-243.830609,0.00020999,2]
[349911966,1737497433212,-243.830609,0.00020999,2]
[349911967,1737497433222,-243.830609,0.00020999,2]
[349911968,1737497433231,-243.830609,0.00020999,2]
[349911969,1737497433241,-243.830609,0.00020999,2]
[349911970,1737497433250,-243.830609,0.00020999,2]
[349911971,1737497433259,-243.830609,0.00020999,2]
[349911972,1737497433268,-243.830609,0.00020999,2]
[349911973,1737497433277,-243.830617,0.00020999,2]
[349911974,1737497433288,-151.0,0.00020999,2]
[349911975,1737497433297,-272.080715,0.00020999,2]
[349911976,1737497433307,-272.080715,0.00020999,2]
[349911977,1737497433316,-272.080715,0.00020999,2]
[349911978,1737497433326,-272.080715,0.00020999,2]
[349911979,1737497433336,-272.080715,0.00020999,2]
[349911980,1737497433345,-272.080715,0.00020999,2]
[349911981,1737497433354,-272.080715,0.00020999,2]
[349911982,1737497433364,-272.080715,0.00020999,2]
[349911983,1737497433373,-272.080715,0.00020999,2]
[349911984,1737497433383,-272.080715,0.00020999,2]
[349911985,1737497433393,-272.080715,0.00020999,2]
[349911986,1737497433402,-272.080715,0.00020999,2]
[349911987,1737497433496,-272.080715,0.00020999,2]
[349911988,1737497433507,-272.080715,0.00020999,2]
[349911989,1737497433522,-272.080715,0.00020999,2]
[349911990,1737497433532,-272.080715,0.00020999,2]
[349911991,1737497433541,-272.080715,0.00020999,2]
[349911992,1737497433551,-272.080715,0.00020999,2]
[349911993,1737497433562,-272.080715,0.00020999,2]
[349911994,1737497433571,-272.08072329,0.00020999,2]
[349911995,1737497433581,-236.008472,0.00020999,2]
[349911996,1737497433591,-151.0,0.00020999,2]
[349911997,1737497433602,-151.0,0.00020999,2]
[349911998,1737497433612,-151.0,0.00020999,2]
[349911999,1737497433621,-151.0,0.00020999,2]
[349912000,1737497433631,-151.0,0.00020999,2]
[349912001,1737497433640,-151.0,0.00020999,2]
[349912002,1737497433649,-151.0,0.00020999,2]
[349912003,1737497433659,-151.0,0.00020999,2]
[349912004,1737497433668,-206.397382,0.00020999,2]
[349912005,1737497433678,-325.837569,0.00020999,2]
[349912006,1737497433687,-325.837569,0.00020999,2]
[349912007,1737497433697,-325.837569,0.00020999,2]
[349912008,1737497433706,-325.837569,0.00020999,2]
[349912009,1737497433715,-325.837569,0.00020999,2]
[349912010,1737497433725,-325.837569,0.00020999,2]
[349912011,1737497433734,-325.837569,0.00020999,2]
[349912012,1737497433743,-325.837569,0.00020999,2]
[349912013,1737497433752,-325.837569,0.00020999,2]
[349912014,1737497433762,-325.837569,0.00020999,2]
[349912015,1737497433771,-325.837569,0.00020999,2]
[349912016,1737497433781,-325.837569,0.00020999,2]
[349912017,1737497433790,-325.837569,0.00020999,2]
[349912018,1737497433800,-151.0,0.00020999,2]
[349912019,1737497433810,-325.837569,0.00020999,2]
[349912020,1737497433820,-151.0,0.00020999,2]
[349912021,1737497433830,-325.837569,0.00020999,2]
[349912022,1737497433839,-151.0,0.00020999,2]
[349912023,1737497433849,-151.0,0.00020999,2]
[349912024,1737497433858,-325.837569,0.00020999,2]
[349912025,1737497433868,-151.0,0.00020999,2]